bitfinex/quotes_SOLUSD_20250830
["timestamp","ask_amount","ask_price","bid_price","bid_amount"]
[1756570707679,0.72,200.39,200.38,39.2]
[1756570708103,0.72,200.39,200.36,9.67769066]
[1756570708267,0.72,200.38,200.37,39.2]
[1756570709591,0.72,200.38,200.37,43.88675692]
[1756570710596,5.40675692,200.38,200.36,0.03]
[1756570710797,0.72,200.38,200.37,39.2]
[1756570711971,5.40675692,200.38,200.37,39.2]
[1756570712995,5.40675692,200.38,200.36,0.03]
[1756570713193,5.40675692,200.38,200.37,39.2]
[1756570715793,0.72,200.38,200.37,39.2]
[1756570717394,5.40675692,200.38,200.37,39.2]
[1756570717603,5.40675692,200.38,200.36,0.03]
[1756570717783,4.68675692,200.37,200.36,0.03]
[1756570718172,5.38675692,200.37,200.36,0.03]
[1756570718594,0.7,200.37,200.36,0.03]
[1756570718795,5.38675692,200.37,200.36,0.03]
[1756570726786,4.68675692,200.37,200.36,0.03]
[1756570727182,5.38675692,200.37,200.36,0.03]
[1756570736429,10.377524,200.37,200.36,0.03]
[1756570736630,14.57534933,200.37,200.36,0.03]
[1756570736934,40.57534933,200.37,200.36,0.03]
[1756570737309,36.377524,200.37,200.36,0.03]
[1756570741523,26.0,200.37,200.36,0.03]
[1756570741838,4.68675692,200.37,200.36,0.03]
[1756570742653,0.06,200.38,200.36,0.03]
[1756570742826,0.06,200.38,200.36,44.54675692]
[1756570743031,0.06,200.38,200.37,0.65]
[1756570744147,0.06,200.38,200.37,5.64076708]
[1756570745220,0.06,200.38,200.37,19.23636109]
[1756570745742,0.06,200.38,200.37,23.92311801]
[1756570745915,0.06,200.38,200.37,24.42219471]
[1756570746524,0.06,200.38,200.37,21.73558779]
[1756570746847,0.06,200.38,200.37,26.42234471]
[1756570748140,1e-08,200.38,200.37,26.42234471]
[1756570748447,1e-08,200.38,200.37,52.42234471]
[1756570749052,1e-08,200.43,200.42,39.59559401]
[1756570749255,1e-08,200.43,200.42,83.94130313]
[1756570749446,1e-08,200.43,200.42,84.59130313]
[1756570749627,1e-08,200.43,200.42,88.59388848]
[1756570750022,1e-08,200.43,200.42,84.59130313]
[1756570750555,1e-08,200.43,200.42,93.67478822]
[1756570750718,1e-08,200.43,200.42,93.17583602]
[1756570751220,1e-08,200.43,200.42,215.17583602]
[1756570752249,1e-08,200.47,200.46,39.59559401]
[1756570752457,1e-08,200.47,200.46,88.43087731]
[1756570752627,1e-08,200.47,200.46,89.08087731]
[1756570752824,1e-08,200.49,200.47,13.59559401]
[1756570753030,1e-08,200.49,200.48,57.44235093]
[1756570753348,1e-08,200.49,200.48,58.5911538]
[1756570754050,1e-08,200.49,200.48,63.57918253]
[1756570756032,1e-08,200.49,200.48,185.57918253]
[1756570756240,1e-08,200.49,200.48,185.08037966]
[1756570756761,1e-08,200.49,200.48,184.41037966]
[1756570757653,1e-08,200.49,200.48,145.27037966]
[1756570757841,1e-08,200.49,200.48,63.06037966]
[1756570759761,1e-08,200.49,200.48,68.45713566]
[1756570759959,1e-08,200.49,200.48,23.98037874]
[1756570760163,1e-08,200.49,200.48,68.43713566]
[1756570760533,1e-08,200.49,200.48,23.98037874]
[1756570760765,1e-08,200.49,200.48,189.78713566]
[1756570761136,1e-08,200.49,200.48,190.43713566]
[1756570763259,1e-08,200.49,200.48,190.46713566]
[1756570763858,1e-08,200.49,200.48,68.46713566]
[1756570764530,1e-08,200.49,200.48,29.34713566]
[1756570764732,1e-08,200.49,200.48,68.46713566]
[1756570765325,0.71000001,200.49,200.48,63.13037874]
[1756570765527,0.71000001,200.49,200.48,44.13802873]
[1756570765729,5.39675693,200.49,200.48,39.15]
[1756570766937,0.71000001,200.49,200.48,39.15]
[1756570767133,5.39675693,200.49,200.48,39.15]
[1756570769255,5.39675693,200.49,200.48,0.03]
[1756570769440,10.38453686,200.49,200.48,0.03]
[1756570769755,5.39675693,200.49,200.48,0.03]
[1756570770355,10.38453686,200.49,200.48,0.03]
[1756570785970,9.88453686,200.49,200.48,0.03]
[1756570786666,9.67453685,200.49,200.48,0.03]
[1756570788083,10.37453685,200.49,200.48,0.03]
[1756570788761,10.37453685,200.49,200.45,0.03]
[1756570788762,26.0,200.46,200.45,0.03]
[1756570788957,30.68675692,200.46,200.45,0.03]
[1756570790068,4.68675692,200.46,200.45,0.7]
[1756570791379,4.25782533,200.52,200.45,5.68875756]
[1756570791573,4.68675692,200.48,200.46,0.67]
[1756570792370,4.68675692,200.47,200.46,0.67]
[1756570793275,4.68675692,200.48,200.46,0.67]
[1756570793497,5.74706646,200.52,200.47,0.67]
[1756570793791,4.68675692,200.48,200.47,0.67]
[1756570793953,4.68675692,200.48,200.45,0.03]
[1756570794154,0.7,200.51,200.45,0.7]
[1756570794354,4.68675692,200.46,200.45,0.7]
[1756570795579,4.68675692,200.46,200.45,0.03]
[1756570796060,4.68675692,200.46,200.45,0.7]
[1756570799280,4.68675692,200.46,200.45,0.03]
[1756570799579,31.38675692,200.46,200.45,0.03]
[1756570799796,36.3752833,200.46,200.45,0.03]
[1756570800491,36.3752833,200.46,200.43,0.03]
[1756570800785,16.66818718,200.48,200.43,0.7]
[1756570800786,4.68675692,200.44,200.43,0.7]
[1756570800996,4.89782533,200.48,200.43,0.03]
[1756570801173,26.0,200.46,200.44,0.67]
[1756570801378,26.0,200.46,200.43,0.03]
[1756570801692,0.67,200.45,200.43,0.03]
[1756570801992,4.98902414,200.44,200.43,0.03]
[1756570802285,9.67578106,200.44,200.43,0.03]
[1756570802499,10.34578106,200.44,200.42,0.03]
[1756570802665,5.35675692,200.43,200.42,0.03]
[1756570802861,31.35675692,200.43,200.42,0.03]
[1756570803065,26.0,200.41,200.4,0.03]
[1756570803295,35.37351384,200.41,200.4,0.03]
[1756570803466,36.04351384,200.41,200.4,0.03]
[1756570804472,4.68675692,200.41,200.4,0.03]
[1756570804669,30.68675692,200.41,200.4,0.03]
[1756570806198,4.68675692,200.41,200.4,0.03]
[1756570807299,30.68675692,200.41,200.4,0.03]
[1756570808190,4.68675692,200.41,200.4,0.03]
[1756570808396,5.35675692,200.41,200.4,0.03]
[1756570808990,10.34652788,200.41,200.4,0.03]
[1756570809195,15.0332848,200.41,200.4,0.03]
[1756570810178,2.001151,200.43,200.4,0.03]
[1756570810379,30.68675692,200.41,200.4,0.74]
[1756570810794,30.68675692,200.41,200.4,0.03]
[1756570814778,4.68675692,200.41,200.4,0.03]
[1756570815410,4.19782533,200.46,200.4,0.03]
[1756570815591,15.005627,200.47,200.4,56.84]
[1756570815787,19.69238392,200.47,200.42,4.68675692]
[1756570815996,19.69238392,200.47,200.43,0.71]
[1756570815997,0.06,200.46,200.43,0.71]
[1756570816687,0.06,200.46,200.44,4.98902414]
[1756570816884,0.06,200.46,200.45,0.71]
[1756570821119,0.06,200.46,200.45,5.69877525]
[1756570823424,4.74675692,200.46,200.44,56.1]
[1756570823628,4.68675692,200.45,200.41,39.06]
[1756570823927,4.68675692,200.42,200.4,0.03]
[1756570824127,4.68675692,200.41,200.4,0.03]
[1756570824812,31.65918197,200.44,200.4,0.74]
[1756570824813,4.68675692,200.42,200.4,0.74]
[1756570824995,4.68675692,200.42,200.41,0.71]
[1756570825312,4.68675692,200.42,200.4,0.03]
[1756570825514,4.68675692,200.41,200.4,0.03]
[1756570830312,10.34652788,200.41,200.4,0.03]
[1756570830622,4.68675692,200.41,200.4,0.74]
[1756570831325,4.68675692,200.41,200.4,0.03]
[1756570832499,10.36652788,200.41,200.4,0.03]
[1756570836035,26.06,200.42,200.4,0.03]
[1756570836226,30.68675692,200.41,200.4,0.03]
[1756570836928,4.68675692,200.41,200.4,0.7]
[1756570837312,4.68675692,200.41,200.4,0.03]
[1756570839742,5.37675692,200.41,200.4,0.03]
[1756570840045,10.36652788,200.41,200.4,0.03]
[1756570840414,36.36652788,200.41,200.4,0.03]
[1756570840636,10.36652788,200.41,200.4,0.03]
[1756570842412,15.0532848,200.41,200.4,0.03]
[1756570842940,17.0545358,200.41,200.4,0.03]
[1756570843308,26.0,200.38,200.37,0.03]
[1756570843513,30.68675692,200.38,200.37,0.03]
[1756570843714,31.37675692,200.38,200.37,0.03]
[1756570845177,36.36727493,200.38,200.37,0.03]
[1756570846456,38.36872593,200.38,200.37,0.03]
[1756570847294,42.55258285,200.38,200.37,0.03]
[1756570847963,34.87061384,200.38,200.37,0.7]
[1756570848285,30.68675692,200.38,200.37,0.7]
[1756570850177,4.68675692,200.38,200.37,0.7]
[1756570850877,10.36727493,200.38,200.37,0.03]
[1756570851278,16.55258285,200.38,200.37,0.03]
[1756570852351,12.36872593,200.38,200.37,0.03]
[1756570852764,16.55258285,200.38,200.37,0.03]
[1756570854075,55.59258285,200.38,200.37,0.03]
[1756570855492,51.40872593,200.38,200.37,0.03]
[1756570861690,26.0,200.35,200.34,0.03]
[1756570861872,73.89926121,200.35,200.34,0.03]
[1756570862190,74.59926121,200.35,200.33,0.03]
[1756570862393,9.67827134,200.34,200.33,0.03]
[1756570862691,10.37827134,200.34,200.33,0.03]
[1756570863371,9.67827134,200.34,200.33,0.03]
[1756570863560,4.99151442,200.34,200.33,0.03]
[1756570863759,6.17445629,200.35,200.33,0.72]
[1756570863760,2.001952,200.35,200.33,0.72]
[1756570863966,6.68870892,200.35,200.33,0.72]
[1756570864272,4.68675692,200.35,200.33,0.72]
[1756570864676,4.68675692,200.34,200.33,0.72]
[1756570864885,4.68675692,200.35,200.33,0.72]
[1756570865398,4.68675692,200.36,200.33,0.72]
[1756570866367,4.68675692,200.35,200.33,0.72]
[1756570866696,4.68675692,200.34,200.33,0.72]
[1756570871194,4.68675692,200.34,200.33,0.03]
[1756570871988,4.68675692,200.34,200.33,0.72]
[1756570872585,9.67827134,200.34,200.33,0.03]
[1756570872764,40.55077563,200.34,200.33,0.03]
[1756570872970,50.69291034,200.34,200.33,0.03]
[1756570873274,39.85077563,200.34,200.33,0.03]
[1756570873473,41.85252763,200.34,200.33,0.03]
[1756570874089,37.68002334,200.34,200.33,0.03]
[1756570874397,42.55252763,200.34,200.33,0.03]
[1756570875496,7.69326642,200.34,200.33,0.03]
[1756570875696,12.38002334,200.34,200.33,0.03]
[1756570876114,11.68002334,200.34,200.33,0.03]
[1756570876270,36.86993063,200.34,200.33,0.72]
[1756570876467,30.68675692,200.34,200.33,0.72]
[1756570877285,30.68675692,200.34,200.33,0.03]
[1756570878586,35.67827134,200.34,200.33,0.03]
[1756570879699,30.68675692,200.34,200.33,0.72]
[1756570880278,30.68675692,200.34,200.33,0.03]
[1756570881911,35.67827134,200.34,200.33,0.03]
[1756570883209,40.55969305,200.34,200.33,0.03]
[1756570883389,36.37827134,200.34,200.33,0.03]
[1756570883590,38.38002234,200.34,200.33,0.03]
[1756570883785,12.38002234,200.34,200.33,0.03]
[1756570884410,43.96709642,200.34,200.33,0.03]
[1756570884713,17.96709642,200.34,200.33,0.03]
[1756570886624,32.99326542,200.34,200.33,0.03]
[1756570886789,37.68002234,200.34,200.33,0.03]
[1756570888306,37.74002234,200.34,200.33,0.03]
[1756570888521,32.74850792,200.34,200.33,0.72]
[1756570888723,0.06,200.34,200.33,0.72]
[1756570889012,4.25680585,200.34,200.33,0.72]
[1756570890912,0.06,200.34,200.33,0.72]
[1756570891708,0.06,200.34,200.33,5.40675692]
[1756570891901,0.06,200.34,200.33,80.09411452]
[1756570892592,0.06,200.34,200.33,84.35092052]
[1756570893101,0.06,200.34,200.33,80.09411452]
[1756570893293,0.06,200.34,200.33,82.09496552]
[1756570893693,0.06,200.34,200.33,80.09411452]
[1756570893890,0.06,200.34,200.33,56.82]
[1756570894107,0.06,200.34,200.33,61.50675692]
[1756570895506,0.06,200.34,200.33,66.49852051]
[1756570896932,0.06,200.34,200.33,61.50675692]
[1756570897134,0.06,200.34,200.33,95.13]
[1756570897297,0.06,200.34,200.33,56.13]
[1756570897622,0.06,200.34,200.33,0.71]
[1756570897804,0.06,200.34,200.33,23.98411452]
[1756570898006,0.06,200.37,200.33,92.56352349]
[1756570898195,0.06,200.37,200.36,18.28235093]
[1756570898404,0.06,200.37,200.36,57.28235093]
[1756570898705,0.06,200.37,200.36,57.96235093]
[1756570898914,0.06,200.37,200.36,18.96235093]
[1756570899112,0.06,200.37,200.36,57.96235093]
[1756570900217,0.06,200.37,200.36,62.9533671]
[1756570901145,1e-08,200.37,200.36,119.55246871]
[1756570901329,1e-08,200.38,200.37,13.59559401]
[1756570901527,1e-08,200.38,200.37,18.96235093]
[1756570902423,1e-08,200.38,200.37,24.45219471]
[1756570903006,1e-08,200.38,200.37,26.45224471]
[1756570903325,0.06,200.4,200.39,39.59559401]
[1756570903511,0.06,200.4,200.39,79.0746209]
[1756570903824,0.06,200.4,200.39,89.12813474]
[1756570904324,0.06,200.4,200.39,96.11845371]
[1756570904502,0.06,200.4,200.39,95.61942682]
[1756570904698,0.06,200.4,200.39,217.61942682]
[1756570905110,1e-08,200.41,200.4,13.59559401]
[1756570905309,0.06,200.46,200.43,13.59559401]
[1756570905526,0.06,200.46,200.44,57.26235093]
[1756570905718,0.06,200.46,200.44,57.94235093]
[1756570906025,0.06,200.46,200.44,59.94180093]
[1756570907213,0.06,200.46,200.44,64.93082507]
[1756570907412,0.06,200.46,200.45,13.59559401]
[1756570907613,0.06,200.49,200.48,26.0]
[1756570907805,0.06,200.49,200.48,139.36235093]
[1756570908132,0.06,200.49,200.48,144.72910785]
[1756570908606,0.06,200.49,200.48,140.04235093]
[1756570909209,0.06,200.49,200.48,145.03037966]
[1756570910719,0.06,200.49,200.48,267.03037966]
[1756570911436,0.06,200.51,200.49,13.59559401]
[1756570911621,0.06,200.51,200.5,61.92910785]
[1756570911822,0.06,200.51,200.5,62.60910785]
[1756570912819,0.06,200.51,200.5,69.59559002]
[1756570913513,0.06,200.51,200.5,260.19559002]
[1756570915234,0.06,200.54,200.51,69.695594]
[1756570915534,0.06,200.54,200.51,114.00235092]
[1756570915834,0.06,200.54,200.51,77.06110192]
[1756570916036,0.06,200.54,200.51,72.374345]
[1756570916223,0.06,200.54,200.51,77.06110192]
[1756570916429,0.74,200.52,200.51,76.38110192]
[1756570916727,0.74,200.52,200.51,71.694345]
[1756570917032,0.74,200.52,200.51,97.03875099]
[1756570917419,0.74,200.52,200.51,95.03999999]
[1756570918837,0.06,200.52,200.51,104.71403933]
[1756570920476,0.74,200.52,200.51,99.72675691]
[1756570920638,0.74,200.52,200.51,95.03999999]
[1756570925370,10.41384576,200.52,200.45,60.78675691]
[1756570925546,4.68675692,200.5,200.46,38.94]
[1756570925875,0.67,200.49,200.46,43.62675692]
[1756570926460,0.67,200.48,200.46,43.62675692]
[1756570926861,0.67,200.47,200.46,38.94]
[1756570928156,10.34503767,200.47,200.45,38.94]
[1756570928470,5.35675692,200.46,200.45,38.94]
[1756570928678,5.35675692,200.46,200.44,38.94]
[1756570928903,0.67,200.45,200.44,38.94]
[1756570929485,5.35675692,200.45,200.44,38.94]
[1756570930589,0.67,200.45,200.43,38.94]
[1756570930788,5.35675692,200.48,200.43,44.29675692]
[1756570930970,30.68675692,200.5,200.44,5.35675692]
[1756570931162,5.35675692,200.5,200.45,43.62675692]
[1756570931496,0.67,200.49,200.45,43.62675692]
[1756570932898,0.67,200.49,200.45,44.29675692]
[1756570933072,26.0,200.49,200.45,44.29675692]
[1756570933396,4.68675692,200.5,200.45,44.29675692]
[1756570933691,5.35675692,200.5,200.45,39.61]
[1756570933883,5.35675692,200.5,200.45,44.59873562]
[1756570934209,0.67,200.5,200.46,10.34520961]
[1756570934494,5.35675692,200.5,200.47,38.94]
[1756570934801,5.35675692,200.49,200.47,38.94]
[1756570934965,5.35675692,200.48,200.47,38.94]
[1756570935289,5.35675692,200.48,200.45,56.09999999]
[1756570935459,5.35675692,200.47,200.45,95.03999999]
[1756570936098,4.68675692,200.47,200.45,95.03999999]
[1756570936265,0.67,200.46,200.45,95.03999999]
[1756570936465,5.35675692,200.46,200.45,95.03999999]
[1756570936964,4.68675692,200.47,200.45,95.03999999]
[1756570937187,4.68675692,200.48,200.45,38.94]
[1756570937665,5.35675692,200.48,200.45,38.94]
[1756570939092,4.68675692,200.48,200.45,38.94]
[1756570941089,4.68675692,200.48,200.45,39.61]
[1756570943274,4.68675692,200.48,200.45,38.94]
[1756570943474,9.67482198,200.48,200.45,38.94]
[1756570944601,9.67482198,200.48,200.45,39.59]
[1756570946094,5.35675692,200.47,200.45,38.92]
[1756570946297,4.68675692,200.47,200.45,38.92]
[1756570946486,4.98806506,200.48,200.45,38.92]
[1756570946688,4.68675692,200.47,200.45,38.92]
[1756570946888,5.35675692,200.46,200.4,56.76999999]
[1756570947089,4.68675692,200.43,200.41,38.92]
[1756570947486,5.35675692,200.42,200.39,0.03]
[1756570947691,4.68675692,200.42,200.39,38.95]
[1756570947991,4.68675692,200.42,200.39,39.62]
[1756570948200,4.68675692,200.42,200.39,38.95]
[1756570948396,4.68675692,200.43,200.4,0.67]
[1756570949605,4.68675692,200.43,200.41,0.67]
[1756570950499,4.68675692,200.49,200.42,5.35675692]
[1756570950700,4.68675692,200.49,200.44,4.68675692]
[1756570950891,4.68675692,200.49,200.45,39.59]
[1756570951495,9.67455901,200.49,200.45,39.59]
[1756570951905,30.68675692,200.5,200.46,0.68]
[1756570952093,4.74675692,200.52,200.47,43.60675692]
[1756570952408,9.73383661,200.52,200.48,0.68]
[1756570952607,9.73383661,200.52,200.47,43.60675692]
[1756570952810,0.06,200.52,200.49,0.68]
[1756570953122,4.74675692,200.52,200.49,0.68]
[1756570953807,0.06,200.52,200.5,0.68]
[1756570954008,0.06,200.52,200.51,0.68]
[1756570954902,0.06,200.52,200.5,38.92]
[1756570955100,0.06,200.52,200.5,39.6]
[1756570956108,0.06,200.52,200.5,38.92]
[1756570957914,0.06,200.52,200.5,39.6]
[1756570958089,0.06,200.52,200.51,5.36675692]
[1756570959009,0.06,200.52,200.51,61.46675692]
[1756570959602,0.06,200.52,200.51,75.06235093]
[1756570960296,0.06,200.52,200.51,80.04963335]
[1756570962210,0.06,200.52,200.51,75.36287643]
[1756570962731,0.06,200.52,200.51,56.1]
[1756570962898,0.06,200.52,200.51,100.36675692]
[1756570963933,0.06,200.52,200.51,44.26675692]
[1756570964102,0.06,200.52,200.51,38.9]
[1756570965122,0.06,200.52,200.51,39.58]
[1756570965311,0.06,200.52,200.51,38.9]
[1756570966506,0.06,200.52,200.51,39.58]
[1756570967519,0.06,200.52,200.51,44.26675692]
[1756570971317,0.06,200.52,200.51,49.25403934]
[1756570973327,0.06,200.52,200.51,49.23403934]
[1756570974029,0.06,200.52,200.51,10.35403934]
[1756570974234,0.06,200.52,200.51,49.23403934]
[1756570975326,0.06,200.52,200.51,10.35403934]
[1756570975630,0.06,200.52,200.51,49.23403934]
[1756570980136,0.06,200.52,200.51,43.86728242]
[1756570980329,0.06,200.52,200.51,38.88]
[1756570980532,0.06,200.52,200.51,43.56675692]
[1756570980730,0.06,200.52,200.49,0.68]
[1756570980919,0.06,200.52,200.48,0.03]
[1756570980920,0.77,200.52,200.5,38.88]
[1756570981727,0.72,200.52,200.5,38.88]
[1756570983832,0.06,200.52,200.5,38.88]
[1756570985319,0.06,200.52,200.51,5.36675692]
[1756570986436,0.06,200.52,200.51,44.24675692]
[1756570987319,0.06,200.52,200.51,38.88]
[1756570987720,0.06,200.52,200.51,39.56]
[1756570988551,0.06,200.52,200.51,44.24675692]
[1756570988750,0.06,200.52,200.51,49.23403934]
[1756570989840,0.06,200.52,200.51,62.82963335]
[1756570991130,0.06,200.52,200.51,88.82963335]
[1756570991825,0.06,200.52,200.51,26.0]
[1756570992155,0.06,200.52,200.51,64.86]
[1756570993850,0.72,200.52,200.51,64.86]
[1756570994053,0.72,200.52,200.49,56.1]
[1756570994352,0.06,200.52,200.5,38.86]
[1756570995235,0.06,200.52,200.51,0.03]
[1756570997028,0.72,200.52,200.51,0.03]
[1756570997763,0.06,200.52,200.51,0.03]
[1756570997962,0.06,200.52,200.51,5.39675692]
[1756570999059,0.06,200.52,200.51,0.03]
[1756570999242,0.06,200.52,200.51,38.89]
[1756571001941,0.06,200.52,200.51,39.57]
[1756571002350,0.06,200.52,200.51,49.24403934]
[1756571003558,0.06,200.52,200.51,105.34403934]
[1756571004272,0.06,200.52,200.51,99.67675692]
[1756571004559,0.06,200.52,200.51,94.99]
[1756571005259,0.06,200.52,200.51,56.13]
[1756571005571,0.06,200.52,200.51,94.99]
[1756571005572,0.72,200.52,200.51,94.99]
[1756571005860,40.5739108,200.52,200.51,0.03]
[1756571006158,36.39379063,200.52,200.51,0.03]
[1756571006360,41.98086471,200.52,200.51,0.03]
[1756571008151,36.39379063,200.52,200.51,0.03]
[1756571008763,4.25090332,200.52,200.51,0.03]
[1756571009147,34.93766024,200.52,200.51,0.03]
[1756571009464,36.39379063,200.52,200.51,0.03]
[1756571009759,30.74675692,200.52,200.51,0.03]
[1756571010268,31.40675692,200.52,200.51,0.03]
[1756571010762,10.39379063,200.52,200.51,0.03]
[1756571013056,0.06,200.52,200.51,0.03]
[1756571013249,30.74675692,200.52,200.51,0.03]
[1756571013980,4.74675692,200.52,200.51,0.03]
[1756571015280,36.44379063,200.52,200.51,0.03]
[1756571015668,35.73379063,200.52,200.51,0.03]
[1756571018266,30.74675692,200.52,200.51,0.03]
[1756571020496,36.44379063,200.52,200.51,0.03]
[1756571026107,10.44379063,200.52,200.51,0.03]
[1756571026392,31.37055654,200.52,200.5,0.03]
[1756571026705,4.68675692,200.51,200.5,0.03]
[1756571026916,43.52675692,200.51,200.5,0.03]
[1756571027078,46.23710692,200.51,200.5,0.03]
[1756571027479,51.22438934,200.51,200.5,0.03]
[1756571028202,55.91114626,200.51,200.5,0.03]
[1756571030300,11.67438934,200.51,200.5,0.03]
[1756571030483,54.0877872,200.51,200.5,0.03]
[1756571030685,49.22403934,200.51,200.5,0.03]
[1756571030892,59.48454412,200.51,200.5,0.03]
[1756571031190,55.91114626,200.51,200.5,0.03]
[1756571032208,56.79557758,200.51,200.5,0.03]
[1756571032401,17.95557758,200.51,200.5,0.03]
[1756571032703,56.79557758,200.51,200.5,0.03]
[1756571033106,51.22438934,200.51,200.5,0.03]
[1756571033308,56.79439544,200.51,200.5,0.03]
[1756571033979,55.91114626,200.51,200.5,0.03]
[1756571034213,61.48070256,200.51,200.5,0.03]
[1756571035235,17.07114626,200.51,200.5,0.03]
[1756571035507,55.91114626,200.51,200.5,0.03]
[1756571040532,26.0,200.49,200.48,0.03]
[1756571040711,49.09707597,200.49,200.48,0.03]
[1756571041026,49.80707597,200.49,200.48,0.03]
[1756571041207,51.80762597,200.49,200.48,0.03]
[1756571041406,12.96762597,200.49,200.48,0.03]
[1756571041624,51.09762597,200.49,200.48,0.03]
[1756571042401,56.7654059,200.49,200.48,0.03]
[1756571042601,56.7638033,200.49,200.48,0.03]
[1756571042822,70.35939731,200.49,200.48,0.03]
[1756571043126,13.59559401,200.48,200.47,1e-08]
[1756571043424,18.28235093,200.48,200.47,1e-08]
[1756571043623,18.96235093,200.48,200.47,1e-08]
[1756571044133,32.68730692,200.48,200.47,0.68000001]
[1756571044307,69.50675692,200.48,200.47,0.68000001]
[1756571044507,35.67478565,200.48,200.47,0.68000001]
[1756571044727,74.49478565,200.48,200.47,0.68000001]
[1756571045229,74.49478565,200.48,200.47,1e-08]
[1756571045829,75.17478565,200.48,200.47,1e-08]
[1756571046016,74.49478565,200.48,200.47,1e-08]
[1756571048622,75.17478565,200.48,200.47,1e-08]
[1756571049034,74.49478565,200.48,200.47,1e-08]
[1756571050119,80.06287166,200.48,200.47,1e-08]
[1756571050333,74.49478565,200.48,200.47,1e-08]
[1756571050635,80.06287166,200.48,200.47,1e-08]
[1756571052132,80.74287166,200.48,200.47,1e-08]
[1756571052430,77.17553665,200.48,200.47,1e-08]
[1756571054339,37.67553665,200.48,200.47,1e-08]
[1756571054510,82.0634264,200.48,200.47,0.68000001]
[1756571055239,74.49478565,200.48,200.47,0.68000001]
[1756571055450,74.49478565,200.48,200.47,1e-08]
[1756571056831,74.49478565,200.48,200.47,0.68000001]
[1756571057216,74.49478565,200.48,200.47,1e-08]
[1756571057738,74.49478565,200.48,200.47,0.68000001]
[1756571058241,74.49478565,200.48,200.47,1e-08]
[1756571058640,80.0626754,200.48,200.47,1e-08]
[1756571059320,82.0632254,200.48,200.47,1e-08]
[1756571059512,43.2432254,200.48,200.47,1e-08]
[1756571059827,74.49478565,200.48,200.47,0.68000001]
[1756571061241,80.0626754,200.48,200.47,0.68000001]
[1756571061440,74.49478565,200.48,200.47,0.68000001]
[1756571062234,74.49478565,200.48,200.47,1e-08]
[1756571062432,80.0626754,200.48,200.47,1e-08]
[1756571062837,74.49478565,200.48,200.47,1e-08]
[1756571063517,74.49478565,200.48,200.45,0.24000001]
[1756571063726,34.86488383,200.46,200.44,0.03]
[1756571063947,4.68675692,200.45,200.44,0.03]
[1756571064439,8.86544828,200.45,200.44,0.03]
[1756571065442,4.17869136,200.45,200.44,0.71]
[1756571065622,8.86544828,200.45,200.44,0.71]
[1756571065822,13.85422353,200.45,200.44,0.71]
[1756571067648,13.85422353,200.45,200.44,0.03]
[1756571067850,9.67553217,200.45,200.44,0.03]
[1756571068020,10.35553217,200.45,200.44,0.03]
[1756571068339,15.92342192,200.45,200.44,0.03]
[1756571069725,10.35553217,200.45,200.44,0.03]
[1756571070933,9.67553217,200.45,200.44,0.03]
[1756571071131,10.35553217,200.45,200.44,0.03]
[1756571073152,11.67628317,200.45,200.44,0.03]
[1756571073335,5.5798116,200.45,200.44,0.71]
[1756571073655,10.26656852,200.46,200.44,0.71]
[1756571073949,4.68675692,200.45,200.44,0.71]
[1756571074750,5.5798116,200.46,200.44,0.71]
[1756571074944,4.68675692,200.45,200.44,0.71]
[1756571075144,4.68675692,200.45,200.44,0.03]
[1756571075652,4.68675692,200.45,200.44,0.71]